bitfinex-derivatives/quotes_BTCF0:USTF0_20260113
["timestamp","ask_amount","ask_price","bid_price","bid_amount"]
[1768294549196,0.06330861,92219.0,92205.0,0.00108852]
[1768294550584,0.06466052,92214.0,92196.0,0.010858]
[1768294550788,0.13059927,92210.0,92196.0,0.010858]
[1768294550998,0.00012675,92209.0,92196.0,0.10803089]
[1768294551387,0.00012675,92209.0,92197.0,0.09717289]
[1768294551588,0.00012675,92209.0,92198.0,0.010858]
[1768294552094,0.00012675,92209.0,92198.0,0.10803089]
[1768294552290,0.00012675,92209.0,92199.0,0.13059927]
[1768294552492,0.00012675,92209.0,92199.0,0.09717289]
[1768294552696,0.00012675,92209.0,92199.0,0.07517289]
[1768294553397,0.09555006,92232.0,92211.0,0.09050329]
[1768294553600,0.09555006,92232.0,92220.0,0.13059927]
[1768294553892,0.13059927,92230.0,92214.0,0.010856]
[1768294554495,0.09772,92229.0,92214.0,0.10135929]
[1768294554799,0.09772,92229.0,92215.0,0.09717289]
[1768294555696,0.09772,92229.0,92216.0,0.010855]
[1768294557698,0.0970541,92235.0,92219.0,0.13059927]
[1768294557910,0.01085,92265.0,92217.0,0.09717289]
[1768294558095,0.09974369,92244.0,92226.0,0.010854]
[1768294558291,0.09772,92243.0,92226.0,0.010854]
[1768294558492,0.1947741,92243.0,92226.0,0.010854]
[1768294558696,0.0970541,92242.0,92226.0,0.010854]
[1768294559801,0.0970541,92242.0,92226.0,0.00543245]
[1768294560606,0.0970541,92242.0,92222.0,0.08560534]
[1768294560791,0.0970541,92242.0,92230.0,0.13059927]
[1768294560992,0.0970541,92245.0,92230.0,0.13059927]
[1768294561191,0.09772,92244.0,92230.0,0.13059927]
[1768294562391,0.09772,92244.0,92230.0,0.14145327]
[1768294562791,0.09772,92244.0,92230.0,0.010854]
[1768294562992,0.09772,92244.0,92230.0,0.14145327]
[1768294564295,0.02490713,92243.0,92230.0,0.14145327]
[1768294564495,0.09772,92244.0,92230.0,0.14145327]
[1768294564695,0.02490862,92243.0,92230.0,0.14145327]
[1768294564890,0.09772,92244.0,92230.0,0.14145327]
[1768294565092,0.02490862,92243.0,92230.0,0.14145327]
[1768294565293,0.09772,92244.0,92230.0,0.010854]
[1768294565494,0.02491277,92243.0,92230.0,0.010854]
[1768294565696,0.19122268,92244.0,92230.0,0.010854]
[1768294565896,0.02491277,92243.0,92230.0,0.010854]
[1768294566096,0.09350268,92244.0,92230.0,0.010854]
[1768294566297,0.02491277,92243.0,92230.0,0.010854]
[1768294566497,0.02491277,92242.0,92230.0,0.010854]
[1768294566794,0.09350268,92244.0,92230.0,0.010854]
[1768294566994,0.02491743,92243.0,92230.0,0.010854]
[1768294567204,0.02491743,92242.0,92230.0,0.010854]
[1768294567403,0.09350268,92244.0,92230.0,0.010854]
[1768294567704,0.02492103,92243.0,92230.0,0.010854]
[1768294568007,0.02492103,92242.0,92230.0,0.010854]
[1768294568202,0.09350268,92244.0,92223.0,0.19100268]
[1768294568396,0.0249229,92243.0,92224.0,0.09932717]
[1768294568597,0.0249229,92242.0,92228.0,0.010854]
[1768294568796,0.09350268,92244.0,92228.0,0.010854]
[1768294569105,0.02492378,92243.0,92228.0,0.010854]
[1768294569302,0.02492378,92242.0,92228.0,0.010854]
[1768294569501,0.02492378,92241.0,92228.0,0.010854]
[1768294569702,0.09350268,92244.0,92228.0,0.010854]
[1768294569897,0.02492661,92243.0,92228.0,0.010854]
[1768294570096,0.02492661,92242.0,92228.0,0.010854]
[1768294570298,0.02492661,92241.0,92228.0,0.010854]
[1768294570504,0.09350268,92244.0,92228.0,0.010854]
[1768294570705,0.02492957,92243.0,92228.0,0.010854]
[1768294570902,0.02492957,92242.0,92228.0,0.010854]
[1768294571206,0.02492957,92241.0,92228.0,0.010854]
[1768294571506,0.09350268,92244.0,92228.0,0.010854]
[1768294571701,0.02493256,92243.0,92228.0,0.010854]
[1768294572005,0.02493256,92242.0,92228.0,0.010854]
[1768294572205,0.09350268,92244.0,92228.0,0.010854]
[1768294573601,0.09350268,92244.0,92230.0,0.010854]
[1768294575804,0.09350268,92244.0,92232.0,0.010854]
[1768294576004,0.09350268,92244.0,92224.0,0.09035691]
[1768294576702,0.19096598,92246.0,92224.0,0.09035691]
[1768294576903,0.02493492,92245.0,92227.0,0.09035691]
[1768294577103,0.02493492,92244.0,92227.0,0.09035691]
[1768294577308,0.19096598,92246.0,92227.0,0.09035691]
[1768294577506,0.02493546,92245.0,92227.0,0.09035691]
[1768294577705,0.02493546,92244.0,92227.0,0.09035691]
[1768294578007,0.2840162,92246.0,92227.0,0.09035691]
[1768294578308,0.02493546,92245.0,92227.0,0.09035691]
[1768294578501,0.02493546,92244.0,92231.0,0.010854]
[1768294578700,0.2840162,92246.0,92231.0,0.010854]
[1768294578901,0.02493745,92245.0,92231.0,0.010854]
[1768294579106,0.02493745,92244.0,92231.0,0.010854]
[1768294579305,0.2840162,92246.0,92231.0,0.010854]
[1768294579602,0.02494042,92245.0,92231.0,0.010854]
[1768294579803,0.02494042,92244.0,92231.0,0.010854]
[1768294580005,0.2840162,92246.0,92231.0,0.010854]
[1768294580301,0.02494042,92245.0,92231.0,0.010854]
[1768294580502,0.02494042,92244.0,92231.0,0.010854]
[1768294580802,0.02494042,92243.0,92231.0,0.010854]
[1768294581001,0.2840162,92246.0,92231.0,0.010854]
[1768294581210,0.09305022,92244.0,92231.0,0.010854]
[1768294581512,0.11799425,92243.0,92231.0,0.010854]
[1768294581711,0.09305022,92243.0,92231.0,0.010854]
[1768294582207,0.02495098,92242.0,92231.0,0.010854]
[1768294582403,0.02495098,92241.0,92231.0,0.010854]
[1768294582604,0.02495098,92240.0,92231.0,0.010854]
[1768294582803,0.02495098,92239.0,92231.0,0.010854]
[1768294583002,0.02495098,92238.0,92231.0,0.010854]
[1768294583310,0.02495098,92237.0,92231.0,0.010854]
[1768294583508,0.02495098,92236.0,92231.0,0.010854]
[1768294583696,0.02495098,92235.0,92225.0,0.09505323]
[1768294584007,9.8e-07,92234.0,92225.0,0.09505323]
[1768294584206,0.09305022,92243.0,92225.0,0.09505323]
[1768294585101,0.09305022,92243.0,92230.0,0.010854]
[1768294587211,0.09305022,92243.0,92225.0,0.09505323]
[1768294587413,0.09305022,92243.0,92230.0,0.010854]
[1768294591416,0.09305022,92243.0,92230.0,0.005854]
[1768294595915,0.19097887,92243.0,92230.0,0.005854]
[1768294596117,0.09381561,92241.0,92230.0,0.005854]
[1768294596309,0.02565846,92240.0,92230.0,0.005854]
[1768294596510,0.02565846,92239.0,92230.0,0.005854]
[1768294596706,0.02565846,92238.0,92230.0,0.005854]
[1768294596906,0.02565846,92237.0,92230.0,0.005854]
[1768294597205,0.02565846,92236.0,92230.0,0.005854]
[1768294597401,0.09381561,92241.0,92230.0,0.005854]
[1768294597601,0.02565848,92240.0,92230.0,0.005854]
[1768294597810,0.09381561,92237.0,92225.0,0.010854]
[1768294598008,0.09381561,92235.0,92225.0,0.010854]
[1768294598212,0.02565848,92234.0,92225.0,0.010854]
[1768294598801,0.09381561,92238.0,92225.0,0.010854]
[1768294599011,0.02614408,92237.0,92225.0,0.010854]
[1768294599205,0.02614408,92236.0,92220.0,0.090534]
[1768294599517,0.02614408,92235.0,92225.0,0.010854]
[1768294599817,0.02614408,92234.0,92225.0,0.010854]
[1768294600116,0.09381561,92238.0,92225.0,0.010854]
[1768294600316,0.02614332,92237.0,92225.0,0.010854]
[1768294600517,0.02614332,92236.0,92225.0,0.010854]
[1768294600718,0.02614332,92235.0,92227.0,0.010854]
[1768294600918,0.02614332,92234.0,92227.0,0.010854]
[1768294601118,0.19174426,92241.0,92227.0,0.010854]
[1768294601318,0.11995837,92240.0,92227.0,0.010854]
[1768294601518,0.02614276,92239.0,92227.0,0.010854]
[1768294601815,0.02614276,92238.0,92227.0,0.010854]
[1768294602122,0.09792865,92249.0,92235.0,0.010853]
[1768294602422,0.09768,92248.0,92235.0,0.010853]
[1768294602817,0.09792865,92247.0,92235.0,0.010853]
[1768294604219,0.05947392,92246.0,92235.0,0.010853]
[1768294605119,0.06274045,92245.0,92235.0,0.010853]
[1768294606420,0.06274045,92245.0,92232.0,0.010854]
[1768294606721,0.06274045,92244.0,92232.0,0.010854]
[1768294606922,0.06274045,92244.0,92225.0,0.0805884]
[1768294607417,0.06274045,92244.0,92232.0,0.010854]
[1768294607617,0.06319305,92242.0,92232.0,0.010854]
[1768294607817,0.1611217,92241.0,92229.0,0.010854]
[1768294608024,0.06319305,92240.0,92229.0,0.010854]
[1768294613627,0.06319305,92240.0,92231.0,0.010854]
[1768294613927,0.06319305,92240.0,92220.0,0.18484227]
[1768294614129,0.02600031,92239.0,92230.0,0.010854]
[1768294614334,0.02600031,92238.0,92230.0,0.010854]
[1768294614526,0.02600031,92237.0,92220.0,0.18469627]
[1768294614727,0.02600031,92236.0,92220.0,0.18469627]
[1768294614925,0.02600031,92235.0,92220.0,0.18469627]
[1768294615128,3.1e-07,92234.0,92220.0,0.18469627]
[1768294615423,0.06319305,92240.0,92230.0,0.010854]
[1768294616329,0.1611217,92240.0,92230.0,0.010854]
[1768294616631,0.06433053,92239.0,92230.0,0.010854]
[1768294617435,0.06433053,92239.0,92232.0,0.010854]
[1768294617634,0.06433053,92239.0,92221.0,0.010855]
[1768294619535,0.06433053,92239.0,92233.0,0.010853]
[1768294620040,0.09792865,92240.0,92233.0,0.010853]
[1768294620336,0.06462871,92239.0,92233.0,0.010853]
[1768294620636,7.1e-07,92239.0,92222.0,0.010855]
[1768294621035,0.09792865,92240.0,92222.0,0.010855]
[1768294622734,0.09792865,92240.0,92231.0,0.010854]
[1768294624334,0.09768,92248.0,92221.0,0.18504267]
[1768294624532,0.09768,92248.0,92222.0,0.09280935]
[1768294624939,0.09768,92248.0,92222.0,0.18854842]
[1768294625330,0.09768,92248.0,92230.0,0.13061984]
[1768294626244,0.09966265,92247.0,92230.0,0.13061984]
[1768294626430,0.09966265,92247.0,92234.0,0.010853]
[1768294626632,0.09966265,92247.0,92230.0,0.13061984]
[1768294626942,0.09966265,92247.0,92236.0,0.010853]
[1768294627238,0.12550375,92246.0,92230.0,0.11547284]
[1768294627439,0.0258411,92245.0,92235.0,0.010853]
[1768294630940,0.0258411,92245.0,92237.0,0.010853]
[1768294631342,0.0258411,92245.0,92239.0,0.010853]
[1768294631537,0.0258411,92245.0,92230.0,0.13061984]
[1768294632645,0.0258411,92245.0,92237.0,0.010853]
[1768294635041,0.0258411,92245.0,92230.0,0.12647284]
[1768294635436,0.0258411,92245.0,92237.0,0.010853]
[1768294642643,0.0258411,92245.0,92230.0,0.13061984]
[1768294643446,0.0258411,92245.0,92237.0,0.010853]
[1768294644739,0.09061193,92267.0,92249.0,0.010852]
[1768294644946,0.09061193,92267.0,92251.0,0.010851]
[1768294645246,0.09061193,92267.0,92254.0,0.010851]
[1768294645549,0.13061984,92264.0,92254.0,0.010851]
[1768294646342,0.09061193,92267.0,92256.0,0.010851]
[1768294647351,0.13061984,92266.0,92256.0,0.010851]
[1768294647551,0.09061193,92267.0,92256.0,0.010851]
[1768294650353,0.09061193,92267.0,92240.0,0.22829984]
[1768294650354,0.13061984,92266.0,92247.0,0.09476431]
[1768294650555,0.09061193,92267.0,92247.0,0.08076431]
[1768294650760,0.09061193,92267.0,92259.0,0.01085]
[1768294655063,0.09061193,92267.0,92250.0,0.13061984]
[1768294655263,0.09061193,92267.0,92247.0,0.17143454]
[1768294656551,0.09061193,92267.0,92255.0,0.010851]
[1768294656755,0.02492181,92266.0,92255.0,0.010851]
[1768294656960,0.02492181,92265.0,92255.0,0.010851]
[1768294657162,0.02492181,92264.0,92255.0,0.010851]
[1768294657362,0.02492181,92263.0,92255.0,0.010851]
[1768294657562,0.09061193,92267.0,92255.0,0.010851]
[1768294657762,0.0249212,92266.0,92255.0,0.010851]
[1768294657964,0.0249212,92265.0,92255.0,0.010851]
[1768294658168,0.0249212,92264.0,92247.0,0.15728554]
[1768294658365,0.0249212,92263.0,92255.0,0.010851]
[1768294658566,0.09061193,92267.0,92255.0,0.010851]
[1768294658770,0.02492093,92266.0,92255.0,0.010851]
[1768294658972,0.02492093,92265.0,92255.0,0.010851]
[1768294659265,0.02492093,92264.0,92255.0,0.010851]
[1768294659568,0.02492093,92263.0,92255.0,0.010851]
[1768294659769,0.13061984,92265.0,92255.0,0.010851]
[1768294659968,0.02492097,92264.0,92255.0,0.010851]
[1768294660168,0.02492097,92263.0,92255.0,0.010851]
[1768294660370,0.02492097,92262.0,92255.0,0.010851]
[1768294660570,0.13061984,92265.0,92255.0,0.010851]
[1768294660770,0.02492144,92264.0,92255.0,0.010851]
[1768294661081,0.02492144,92263.0,92257.0,0.010851]
[1768294661272,0.02492144,92262.0,92257.0,0.010851]
[1768294661568,0.22123177,92267.0,92257.0,0.010851]
[1768294661771,0.02492231,92266.0,92257.0,0.010851]
[1768294662075,0.02492231,92265.0,92257.0,0.010851]
[1768294662274,0.02492231,92264.0,92257.0,0.010851]
[1768294662470,0.22123177,92267.0,92257.0,0.010851]
[1768294662670,0.02492318,92266.0,92257.0,0.010851]
[1768294662874,0.02492318,92265.0,92257.0,0.010851]
[1768294663074,0.02492318,92264.0,92257.0,0.010851]
[1768294663276,0.22123177,92267.0,92257.0,0.010851]
[1768294663476,0.02492443,92266.0,92257.0,0.010851]
[1768294663774,0.02492443,92265.0,92257.0,0.010851]
[1768294663973,0.02492443,92264.0,92257.0,0.010851]
[1768294664174,0.22123177,92267.0,92257.0,0.010851]
[1768294664481,0.02492443,92266.0,92257.0,0.010851]
[1768294664677,0.02492443,92265.0,92257.0,0.010851]
[1768294664878,0.02492443,92264.0,92257.0,0.010851]
[1768294665078,0.22123177,92267.0,92257.0,0.010851]
[1768294665267,0.02492609,92266.0,92257.0,0.010851]
[1768294665470,0.02492609,92265.0,92257.0,0.010851]
[1768294665670,0.02492609,92264.0,92257.0,0.010851]
[1768294665877,0.02492609,92263.0,92247.0,0.14113654]
[1768294666078,0.13061984,92260.0,92247.0,0.14113654]
[1768294666579,8.4e-07,92260.0,92247.0,0.14113654]
[1768294667580,8.4e-07,92260.0,92257.0,0.010851]
[1768294667772,0.22123177,92267.0,92257.0,0.010851]
[1768294667973,0.02493393,92266.0,92257.0,0.010851]
[1768294668170,0.02493393,92265.0,92257.0,0.010851]
[1768294668482,0.02493393,92264.0,92257.0,0.010851]
[1768294668687,0.02493393,92263.0,92257.0,0.010851]
[1768294668977,0.02493393,92262.0,92257.0,0.010851]
[1768294669190,0.22123177,92267.0,92254.0,0.010851]
[1768294669477,0.13061984,92264.0,92256.0,0.010851]
[1768294669775,0.02493771,92263.0,92247.0,0.05046631]
[1768294669982,0.13061984,92260.0,92249.0,0.010852]
[1768294670177,0.13061984,92260.0,92244.0,0.09768]
[1768294671076,0.13061984,92260.0,92251.0,0.010851]
[1768294671477,0.13061984,92260.0,92244.0,0.09768]
[1768294671983,0.13061984,92260.0,92244.0,0.18835023]
[1768294672183,6.3e-07,92259.0,92244.0,0.28383789]
[1768294672373,0.13061984,92260.0,92245.0,0.18615789]
[1768294672777,0.13061984,92260.0,92245.0,0.09548766]
[1768294673070,0.13061984,92260.0,92244.0,0.18835023]
[1768294673486,0.13061984,92260.0,92253.0,0.010851]
[1768294673790,0.13061984,92263.0,92244.0,0.28383789]
[1768294673991,0.13061984,92260.0,92244.0,0.28383789]
[1768294674382,0.13061984,92260.0,92253.0,0.010851]
[1768294674581,0.09061193,92267.0,92244.0,0.28383789]
[1768294674582,0.13061984,92263.0,92244.0,0.28383789]
[1768294674782,0.13061984,92260.0,92244.0,0.09768]
[1768294675593,0.13061984,92260.0,92248.0,0.010852]
[1768294679093,0.13061984,92260.0,92244.0,0.092532]
[1768294679295,0.09577381,92262.0,92244.0,0.092532]
[1768294679494,0.13061984,92260.0,92248.0,0.010852]
[1768294682696,0.13061984,92258.0,92244.0,0.092532]
[1768294682995,0.13061984,92260.0,92244.0,0.092532]
[1768294682996,0.13061984,92254.0,92244.0,0.092532]
[1768294684398,0.13061984,92254.0,92248.0,0.010852]
[1768294684599,0.13061984,92258.0,92248.0,0.010852]
[1768294684899,0.02428027,92257.0,92248.0,0.010852]
[1768294685100,0.02428027,92256.0,92248.0,0.010852]
[1768294685297,0.13061984,92258.0,92248.0,0.010852]
[1768294685501,0.02428015,92257.0,92248.0,0.010852]
[1768294685693,0.02428015,92256.0,92248.0,0.010852]
[1768294685895,0.13061984,92258.0,92248.0,0.010852]
[1768294686096,0.02428015,92257.0,92248.0,0.010852]
[1768294686296,0.02428015,92256.0,92248.0,0.010852]
[1768294686497,0.13061984,92258.0,92248.0,0.010852]
[1768294686700,0.02428006,92257.0,92240.0,0.08652123]
[1768294686897,8.4e-07,92250.0,92240.0,0.08652123]
[1768294687099,0.13061984,92260.0,92240.0,0.21714107]
[1768294687299,0.02428006,92259.0,92240.0,0.08652123]
[1768294687490,0.02428006,92258.0,92240.0,0.08652123]
[1768294687698,0.02428006,92257.0,92240.0,0.17846346]
[1768294688006,0.02428006,92256.0,92240.0,0.17846346]
[1768294688203,0.00171774,92261.0,92240.0,0.17846346]
[1768294688406,0.02427999,92260.0,92248.0,0.010852]
[1768294688601,0.02427999,92259.0,92248.0,0.010852]
[1768294688900,0.02427999,92258.0,92248.0,0.010852]
[1768294689100,0.02427999,92257.0,92248.0,0.010852]
[1768294689288,0.02427999,92256.0,92250.0,0.010851]
[1768294689492,0.00171774,92261.0,92247.0,0.010852]
[1768294689695,0.02428003,92260.0,92247.0,0.010852]
[1768294689912,0.02428003,92259.0,92247.0,0.010852]
[1768294690093,0.02428003,92258.0,92247.0,0.010852]
[1768294690404,0.02428003,92257.0,92247.0,0.010852]
[1768294690607,0.02428003,92256.0,92247.0,0.010852]
[1768294690789,0.00171774,92261.0,92247.0,0.010852]
[1768294690989,0.0242801,92260.0,92247.0,0.010852]
[1768294691196,0.0242801,92259.0,92247.0,0.010852]
[1768294691396,0.0242801,92258.0,92247.0,0.010852]
[1768294691597,0.0242801,92257.0,92240.0,0.17846346]
[1768294691797,0.0242801,92256.0,92240.0,0.17846346]
[1768294691998,0.02428022,92255.0,92242.0,0.010852]
[1768294692197,0.00171774,92261.0,92242.0,0.010852]
[1768294692394,0.02428036,92260.0,92244.0,0.010852]
[1768294692706,0.02428036,92259.0,92244.0,0.010852]
[1768294693005,0.02428036,92258.0,92244.0,0.010852]
[1768294693207,0.02428036,92257.0,92244.0,0.010852]
[1768294693404,0.02428036,92256.0,92244.0,0.010852]
[1768294693604,0.00171774,92261.0,92244.0,0.010852]
[1768294693805,0.02427988,92260.0,92244.0,0.010852]
[1768294694109,0.02427988,92259.0,92244.0,0.010852]
[1768294694302,0.02427988,92258.0,92244.0,0.010852]
[1768294694503,0.02427988,92257.0,92240.0,0.17846346]
[1768294694704,0.02427988,92256.0,92240.0,0.17846346]
[1768294695002,0.00171774,92261.0,92244.0,0.010852]
[1768294695205,0.02427945,92260.0,92244.0,0.010852]
[1768294695406,0.02427945,92259.0,92244.0,0.010852]
[1768294695605,0.02427945,92258.0,92244.0,0.010852]
[1768294695808,0.02427945,92257.0,92244.0,0.010852]
[1768294695999,0.02427945,92256.0,92244.0,0.010852]
[1768294696199,0.00171774,92261.0,92244.0,0.010852]
[1768294696406,0.02427881,92260.0,92244.0,0.010852]
[1768294696608,0.02427881,92259.0,92244.0,0.010852]
[1768294696807,0.02427881,92258.0,92244.0,0.010852]
[1768294697007,0.02427881,92257.0,92244.0,0.010852]
[1768294697200,0.02427881,92256.0,92244.0,0.010852]
[1768294697401,0.00171774,92261.0,92244.0,0.010852]
[1768294697602,0.02427897,92260.0,92244.0,0.010852]
[1768294697802,0.02427897,92259.0,92244.0,0.010852]
[1768294698002,0.02427897,92258.0,92244.0,0.010852]
[1768294698202,0.02427897,92257.0,92241.0,0.010853]
[1768294698404,0.01363296,92260.0,92241.0,0.010853]
[1768294698607,0.02427906,92259.0,92241.0,0.010853]
[1768294698803,0.02427906,92258.0,92240.0,0.17846346]
[1768294699097,0.02427906,92257.0,92243.0,0.010852]
[1768294699301,0.02427906,92257.0,92235.0,0.09368324]
[1768294699302,0.09023516,92257.0,92235.0,0.09368324]
[1768294699512,0.0028126,92254.0,92236.0,0.09768]
[1768294699906,0.0028126,92254.0,92239.0,0.010853]
[1768294701009,0.0136636,92254.0,92236.0,0.09768]
[1768294701201,0.0028126,92253.0,92236.0,0.09768]
[1768294702018,0.0028126,92253.0,92237.0,0.010853]
[1768294702216,0.02455618,92252.0,92236.0,0.087533]
[1768294702417,0.0028126,92253.0,92236.0,0.087533]
[1768294702610,0.02455541,92252.0,92236.0,0.087533]
[1768294702810,0.0028126,92253.0,92236.0,0.087533]
[1768294702811,0.0028126,92253.0,92237.0,0.010853]
[1768294703011,0.02455542,92252.0,92237.0,0.010853]
[1768294703212,0.0028126,92253.0,92237.0,0.010853]
[1768294703411,0.02455542,92252.0,92237.0,0.010853]
[1768294703614,0.0028126,92253.0,92237.0,0.010853]
[1768294703813,0.02455481,92252.0,92237.0,0.010853]
[1768294704019,0.0028126,92253.0,92237.0,0.010853]
[1768294704319,0.02466449,92252.0,92237.0,0.010853]
[1768294704518,0.0028126,92253.0,92237.0,0.010853]
[1768294704720,0.02466408,92252.0,92237.0,0.010853]
[1768294704920,0.0028126,92253.0,92237.0,0.010853]
[1768294705219,0.02466408,92252.0,92237.0,0.010853]
[1768294705408,0.0028126,92253.0,92237.0,0.010853]
[1768294705614,0.02466336,92252.0,92237.0,0.010853]
[1768294705909,0.0028126,92253.0,92237.0,0.010853]
[1768294706115,0.02466336,92252.0,92237.0,0.010853]
[1768294706315,0.0028126,92253.0,92237.0,0.010853]
[1768294706622,0.0246627,92252.0,92237.0,0.010853]
[1768294706821,0.09023516,92255.0,92237.0,0.010853]
[1768294707024,0.0246627,92254.0,92237.0,0.010853]
[1768294707223,0.0246627,92253.0,92237.0,0.010853]
[1768294707423,0.0246627,92252.0,92237.0,0.010853]
[1768294707627,0.0919788,92255.0,92237.0,0.010853]
[1768294707820,0.02466216,92254.0,92237.0,0.010853]
[1768294708021,0.02466216,92253.0,92237.0,0.010853]
[1768294708222,0.02466216,92252.0,92237.0,0.010853]
[1768294708424,0.02466216,92251.0,92237.0,0.010853]
[1768294708625,0.0919788,92255.0,92237.0,0.010853]
[1768294708825,0.02466172,92254.0,92237.0,0.010853]
[1768294709026,0.02466172,92253.0,92237.0,0.010853]
[1768294709229,0.02466172,92252.0,92237.0,0.010853]
[1768294709532,0.02466172,92251.0,92237.0,0.010853]
[1768294709833,0.00116917,92254.0,92236.0,0.083386]
[1768294710030,0.02583039,92253.0,92236.0,0.083386]
[1768294710233,0.02583039,92252.0,92236.0,0.083386]
[1768294710433,0.010851,92254.0,92236.0,0.083386]
[1768294710434,0.00116917,92250.0,92236.0,0.083386]
[1768294710831,0.00116917,92250.0,92223.0,0.010855]
[1768294710832,0.09140433,92242.0,92223.0,0.010855]
[1768294711133,0.09140433,92232.0,92209.0,0.09794315]
[1768294711326,0.02469881,92231.0,92211.0,0.10879915]
[1768294711737,0.02580841,92231.0,92211.0,0.10879915]
[1768294711921,0.09134476,92231.0,92211.0,0.10879915]
[1768294712734,0.09134476,92231.0,92213.0,0.010856]
[1768294714332,0.09134476,92231.0,92213.0,0.09794315]
[1768294715138,0.09134476,92231.0,92211.0,0.09331661]
[1768294715633,0.09134476,92231.0,92213.0,0.010856]
[1768294715828,0.09134476,92231.0,92211.0,0.09331661]
[1768294717644,0.09134476,92231.0,92211.0,0.08931661]
[1768294719050,0.010854,92230.0,92211.0,0.08931661]
[1768294719353,0.09691891,92227.0,92208.0,0.09768]
[1768294719555,0.09691891,92227.0,92208.0,0.19099661]
[1768294719751,0.09691891,92227.0,92209.0,0.09331661]
[1768294720049,0.09221021,92227.0,92209.0,0.09331661]
[1768294725252,0.09221021,92227.0,92209.0,0.07931661]
[1768294725448,0.11216015,92227.0,92208.0,0.09768]
[1768294726449,0.11216015,92227.0,92209.0,0.010856]
[1768294727340,0.11216015,92227.0,92209.0,0.10417261]
[1768294729256,0.010854,92226.0,92209.0,0.09331661]
[1768294730352,0.01944304,92225.0,92209.0,0.010856]
[1768294730850,0.01944304,92230.0,92209.0,0.10417261]
[1768294731449,0.01944304,92230.0,92212.0,0.10417261]
[1768294731750,0.09221021,92231.0,92212.0,0.10417261]
[1768294732956,0.11255541,92230.0,92212.0,0.09217261]
[1768294733562,0.11255541,92230.0,92212.0,0.10302861]
[1768294738869,0.09221021,92230.0,92212.0,0.10302861]
[1768294739365,0.02492753,92229.0,92212.0,0.10302861]
[1768294739563,0.09221021,92230.0,92212.0,0.10302861]
[1768294739752,0.02492753,92229.0,92212.0,0.10302861]
[1768294739950,0.09221021,92230.0,92212.0,0.10302861]
[1768294740155,0.02492753,92229.0,92212.0,0.10302861]
[1768294740360,0.02495827,92228.0,92212.0,0.10302861]
[1768294740562,0.02495827,92227.0,92212.0,0.10302861]
[1768294740767,0.02495827,92226.0,92212.0,0.09302861]
[1768294741067,0.09221021,92230.0,92212.0,0.09302861]
[1768294741267,0.02495834,92229.0,92212.0,0.09302861]
[1768294741457,0.02495834,92228.0,92212.0,0.09302861]
[1768294741658,0.02495834,92227.0,92212.0,0.09302861]
[1768294741859,0.09221021,92230.0,92212.0,0.09302861]
[1768294742065,0.02495871,92229.0,92212.0,0.09302861]
[1768294742261,0.02495871,92228.0,92212.0,0.09302861]
[1768294742464,0.02495871,92227.0,92212.0,0.09302861]
[1768294742664,0.02495871,92226.0,92212.0,0.09302861]
[1768294742864,0.09221021,92230.0,92212.0,0.09302861]
[1768294743067,0.02495947,92229.0,92214.0,0.010856]
[1768294743268,0.02495947,92228.0,92214.0,0.010856]
[1768294743567,0.02495947,92227.0,92214.0,0.010856]
[1768294743767,0.02495947,92226.0,92214.0,0.010856]
[1768294743967,0.09221021,92230.0,92214.0,0.010856]
[1768294744168,0.02496019,92229.0,92214.0,0.010856]
[1768294744369,0.02496019,92228.0,92214.0,0.010856]
[1768294744566,0.02496019,92227.0,92214.0,0.010856]
[1768294744766,0.02496019,92226.0,92214.0,0.010856]
[1768294745070,0.09221021,92230.0,92214.0,0.010856]
[1768294745269,0.02496115,92229.0,92214.0,0.010856]
[1768294745473,0.02496115,92228.0,92214.0,0.010856]
[1768294745671,0.02496115,92227.0,92214.0,0.010856]
[1768294745871,0.02496115,92226.0,92214.0,0.010856]
[1768294746069,0.09221021,92230.0,92214.0,0.010856]
[1768294746269,0.02496158,92229.0,92214.0,0.010856]
[1768294746463,0.09221021,92230.0,92214.0,0.010856]
[1768294746464,0.02496158,92228.0,92214.0,0.010856]
[1768294746664,0.02496158,92227.0,92214.0,0.010856]
[1768294746966,0.02496158,92226.0,92214.0,0.10929238]
[1768294747164,0.09768,92232.0,92214.0,0.10929238]
[1768294747365,0.02496207,92231.0,92214.0,0.10929238]
[1768294747564,0.02496207,92230.0,92214.0,0.10929238]
[1768294747765,0.02496207,92229.0,92214.0,0.10929238]
[1768294747966,0.02496207,92228.0,92214.0,0.10929238]
[1768294748162,0.02496207,92227.0,92214.0,0.10929238]
[1768294748361,0.02496207,92226.0,92214.0,0.10929238]
[1768294748566,0.09768,92232.0,92214.0,0.08929238]
[1768294748777,0.024963,92231.0,92214.0,0.08929238]
[1768294748975,0.024963,92230.0,92214.0,0.08929238]
[1768294749173,0.024963,92229.0,92214.0,0.08929238]
[1768294749374,0.024963,92228.0,92214.0,0.10014838]
[1768294749575,0.024963,92227.0,92214.0,0.10014838]
[1768294749775,0.024963,92226.0,92214.0,0.10014838]
[1768294750076,0.13068046,92230.0,92214.0,0.10014838]
[1768294750278,0.02496347,92229.0,92214.0,0.10014838]
[1768294750469,0.02496347,92228.0,92214.0,0.10014838]
[1768294750669,0.02496347,92227.0,92214.0,0.10014838]
[1768294750869,0.02496347,92226.0,92214.0,0.10014838]
[1768294751081,0.13068046,92230.0,92214.0,0.10014838]
[1768294751279,0.02496364,92229.0,92214.0,0.10014838]
[1768294751481,0.02496364,92228.0,92214.0,0.10014838]
[1768294751678,0.02496364,92227.0,92214.0,0.10014838]
[1768294751880,0.02496364,92226.0,92214.0,0.10014838]
[1768294752080,0.02496364,92225.0,92214.0,0.10014838]
[1768294752286,0.02496364,92224.0,92214.0,0.10014838]
[1768294752468,0.13068046,92230.0,92214.0,0.10014838]
[1768294752673,0.02503905,92229.0,92214.0,0.10014838]
[1768294752880,0.02503905,92228.0,92214.0,0.10014838]
[1768294753076,0.1726945,92240.0,92221.0,0.09843638]
[1768294753277,0.13785167,92247.0,92225.0,0.09843638]
[1768294753483,0.09772,92244.0,92227.0,0.09843638]
[1768294753684,0.13068046,92240.0,92227.0,0.09843638]
[1768294753981,0.13068046,92240.0,92224.0,0.10929138]
[1768294756183,0.13068046,92240.0,92224.0,0.08929138]
[1768294756384,0.13068046,92240.0,92224.0,0.10014638]
[1768294758284,0.13068046,92240.0,92224.0,0.08929138]
[1768294759778,0.13068046,92240.0,92225.0,0.09055647]
[1768294761891,0.09772,92239.0,92230.0,0.09055647]
[1768294762081,0.09772,92241.0,92230.0,0.09055647]
[1768294762276,0.09772,92241.0,92227.0,0.010854]